[Event "November 21 Late 2023"]
[Site "https://www.chess.com"]
[Date "2023.11.21"]
[Round "8"]
[White "Olsen, Filip Boe"]
[Black "Rustemov, Alexander"]
[Result "0-1"]
[Board "21"]
[TimeControl "180+1"]
[WhiteFideId "1440640"]
[BlackFideId "4119002"]
[WhiteElo "2322"]
[BlackElo "2862"]
[WhiteTeam "DEN"]
[BlackTeam "RUS"]
[WhiteClock "0:00:00"]
[BlackClock "0:00:08"]

1. d4 {[%clk 0:03:00]}  d5 {[%clk 0:02:56]} 2. Nf3 {[%clk 0:03:00]}  Nf6 {[%clk 0:02:56]} 3. Bf4 {[%clk 0:03:01]}  c5 {[%clk 0:02:55]} 4. e3 {[%clk 0:03:00]}  Nc6 {[%clk 0:02:55]} 5. c3 {[%clk 0:03:01]}  Bg4 {[%clk 0:02:55]} 6. Nbd2 {[%clk 0:03:00]}  e6 {[%clk 0:02:53]} 7. Qb3 {[%clk 0:02:51]}  Qc8 {[%clk 0:02:52]} 8. Ne5 {[%clk 0:02:49]}  Nxe5 {[%clk 0:02:40]} 9. Bxe5 {[%clk 0:02:43]}  Nd7 {[%clk 0:02:40]} 10. Bg3 {[%clk 0:02:35]}  c4 {[%clk 0:02:40]} 11. Qc2 {[%clk 0:02:34]}  Be7 {[%clk 0:02:35]} 12. e4 {[%clk 0:02:34]}  O-O {[%clk 0:02:32]} 13. f3 {[%clk 0:02:32]}  Bh5 {[%clk 0:02:31]} 14. Be2 {[%clk 0:02:32]}  b5 {[%clk 0:02:30]} 15. O-O {[%clk 0:02:29]}  Bg6 {[%clk 0:02:29]} 16. Rae1 {[%clk 0:02:28]}  Qc6 {[%clk 0:02:28]} 17. Bd1 {[%clk 0:02:23]}  a5 {[%clk 0:02:25]} 18. f4 {[%clk 0:01:58]}  dxe4 {[%clk 0:02:07]} 19. Nxe4 {[%clk 0:01:59]}  Nf6 {[%clk 0:02:05]} 20. Bf3 {[%clk 0:01:59]}  Qd7 {[%clk 0:01:55]} 21. Qe2 {[%clk 0:01:52]}  Rac8 {[%clk 0:01:49]} 22. Nxf6+ {[%clk 0:01:50]}  Bxf6 {[%clk 0:01:49]} 23. a3 {[%clk 0:01:50]}  b4 {[%clk 0:01:47]} 24. axb4 {[%clk 0:01:24]}  Bd3 {[%clk 0:01:47]} 25. Qf2 {[%clk 0:01:19]}  Bxf1 {[%clk 0:01:47]} 26. Rxf1 {[%clk 0:01:18]}  axb4 {[%clk 0:01:47]} 27. Bh4 {[%clk 0:01:17]}  Bxh4 {[%clk 0:01:44]} 28. Qxh4 {[%clk 0:01:17]}  Qd8 {[%clk 0:01:37]} 29. Qh5 {[%clk 0:01:14]}  Qf6 {[%clk 0:01:35]} 30. Be4 {[%clk 0:01:14]}  g6 {[%clk 0:01:33]} 31. Qb5 {[%clk 0:01:14]}  bxc3 {[%clk 0:01:31]} 32. bxc3 {[%clk 0:01:15]}  h5 {[%clk 0:01:26]} 33. h3 {[%clk 0:01:15]}  h4 {[%clk 0:01:25]} 34. f5 {[%clk 0:01:13]}  exf5 {[%clk 0:01:18]} 35. Bxf5 {[%clk 0:01:13]}  Rb8 {[%clk 0:01:07]} 36. Qc5 {[%clk 0:01:12]}  Qb6 {[%clk 0:01:05]} 37. Qxc4 {[%clk 0:01:08]}  Kg7 {[%clk 0:01:02]} 38. Bg4 {[%clk 0:01:05]}  f5 {[%clk 0:00:59]} 39. Bf3 {[%clk 0:01:04]}  Qb3 {[%clk 0:00:53]} 40. Qc7+ {[%clk 0:01:02]}  Qf7 {[%clk 0:00:52]} 41. Qf4 {[%clk 0:00:58]}  Qf6 {[%clk 0:00:49]} 42. Ra1 {[%clk 0:00:58]}  Rf7 {[%clk 0:00:49]} 43. Qxb8 {[%clk 0:00:49]}  Qg5 {[%clk 0:00:33]} 44. Qe5+ {[%clk 0:00:46]}  Kh7 {[%clk 0:00:32]} 45. Ra8 {[%clk 0:00:44]}  Qc1+ {[%clk 0:00:28]} 46. Kh2 {[%clk 0:00:44]}  Rg7 {[%clk 0:00:28]} 47. Bd5 {[%clk 0:00:29]}  Qxc3 {[%clk 0:00:26]} 48. Bg8+ {[%clk 0:00:17]}  Kh6 {[%clk 0:00:22]} 49. Qf4+ {[%clk 0:00:15]}  g5 {[%clk 0:00:22]} 50. Qd6+ {[%clk 0:00:14]}  Rg6 {[%clk 0:00:18]} 51. Qf8+ {[%clk 0:00:14]}  Kh5 {[%clk 0:00:18]} 52. Qb8 {[%clk 0:00:10]}  f4 {[%clk 0:00:15]} 53. Qb3 {[%clk 0:00:10]}  Qg3+ {[%clk 0:00:10]} 54. Qxg3 {[%clk 0:00:10]}  hxg3+ {[%clk 0:00:10]} 55. Kg1 {[%clk 0:00:10]}  Rb6 {[%clk 0:00:11]} 56. Kf1 {[%clk 0:00:10]}  Rb1+ {[%clk 0:00:10]} 57. Ke2 {[%clk 0:00:09]}  Rb2+ {[%clk 0:00:11]} 58. Kd3 {[%clk 0:00:07]}  Rxg2 {[%clk 0:00:11]} 59. Ra6 {[%clk 0:00:06]}  g4 {[%clk 0:00:09]} 60. Bf7+ {[%clk 0:00:04]}  Kg5 {[%clk 0:00:09]} 61. Rg6+ {[%clk 0:00:04]}  Kh4 {[%clk 0:00:09]} 62. Rxg4+ {[%clk 0:00:04]}  Kxh3 {[%clk 0:00:09]} 63. Rxf4 {[%clk 0:00:05]}  Rg1 {[%clk 0:00:08]} 64. Be6+ {[%clk 0:00:04]}  Kh2 {[%clk 0:00:08]} 65. Rh4+ {[%clk 0:00:05]}  Kg2 {[%clk 0:00:08]} 66. Bd5+ {[%clk 0:00:05]}  Kf2 {[%clk 0:00:08]} 67. Rg4 {[%clk 0:00:06]}  Rd1+ {[%clk 0:00:07]} 68. Ke4 {[%clk 0:00:06]}  Rf1 {[%clk 0:00:07]} 69. Ke5 {[%clk 0:00:06]}  Re1+ {[%clk 0:00:07]} 70. Kd6 {[%clk 0:00:07]}  Rd1 {[%clk 0:00:06]} 71. Bc6 {[%clk 0:00:07]}  Rd2 {[%clk 0:00:06]} 72. Bh1 {[%clk 0:00:05]}  Rd1 {[%clk 0:00:06]} 73. Bc6 {[%clk 0:00:05]}  Rd2 {[%clk 0:00:06]} 74. Ke5 {[%clk 0:00:04]}  Re2+ {[%clk 0:00:06]} 75. Kf4 {[%clk 0:00:04]}  Rd2 {[%clk 0:00:07]} 76. Kg5 {[%clk 0:00:04]}  Rd1 {[%clk 0:00:06]} 77. Kh4 {[%clk 0:00:04]}  Rg1 {[%clk 0:00:05]} 78. d5 {[%clk 0:00:02]}  Rd1 {[%clk 0:00:05]} 79. Rf4+ {[%clk 0:00:01]}  Ke3 {[%clk 0:00:04]} 80. Rg4 {[%clk 0:00:01]}  Kf2 {[%clk 0:00:04]} 81. Rg5 {[%clk 0:00:02]}  g2 {[%clk 0:00:04]} 82. Rxg2+ {[%clk 0:00:01]}  Kxg2 {[%clk 0:00:04]} 83. d6+ {[%clk 0:00:02]}  Kf2 {[%clk 0:00:04]} 84. d7 {[%clk 0:00:03]}  Ke3 {[%clk 0:00:04]} 85. Kg5 {[%clk 0:00:04]}  Rd6 {[%clk 0:00:02]} 86. Kf5 {[%clk 0:00:03]}  Kd4 {[%clk 0:00:03]} 87. Ba4 {[%clk 0:00:02]}  Kc5 {[%clk 0:00:03]} 88. Ke5 {[%clk 0:00:03]}  Rd2 {[%clk 0:00:02]} 89. Ke6 {[%clk 0:00:03]}  Kb6 {[%clk 0:00:03]} 90. Ke7 {[%clk 0:00:04]}  Kc7 {[%clk 0:00:03]} 91. Bb5 {[%clk 0:00:04]}  Rd1 {[%clk 0:00:03]} 92. Kf7 {[%clk 0:00:05]}  Re1 {[%clk 0:00:03]} 93. Kf6 {[%clk 0:00:04]}  Kd8 {[%clk 0:00:04]} 94. Kf7 {[%clk 0:00:05]}  Rb1 {[%clk 0:00:04]} 95. Bc6 {[%clk 0:00:05]}  Rb6 {[%clk 0:00:05]} 96. Ba4 {[%clk 0:00:04]}  Ra6 {[%clk 0:00:05]} 97. Bb5 {[%clk 0:00:05]}  Ra5 {[%clk 0:00:06]} 98. Bc6 {[%clk 0:00:05]}  Rc5 {[%clk 0:00:07]} 99. Ba4 {[%clk 0:00:05]}  Re5 {[%clk 0:00:07]} 100. Kf6 {[%clk 0:00:05]}  Re4 {[%clk 0:00:08]} 101. Bb5 {[%clk 0:00:06]}  Rd4 {[%clk 0:00:08]} 102. Bc6 {[%clk 0:00:00]}  Rd6+ {[%clk 0:00:08]} 0-1

[Event "November 21 Late 2023"]
[Site "https://www.chess.com"]
[Date "2023.11.21"]
[Round "8"]
[White "Gimenez Aguirre, Alejo Ismael"]
[Black "Beerdsen, Thomas"]
[Result "0-1"]
[Board "22"]
[TimeControl "180+1"]
[WhiteFideId "32041667"]
[BlackFideId "1030108"]
[WhiteElo "2165"]
[BlackElo "2550"]
[WhiteTeam "ARG"]
[BlackTeam "NED"]
[WhiteClock "0:00:00"]
[BlackClock "0:00:22"]

1. e4 {[%clk 0:02:59]}  e5 {[%clk 0:03:00]} 2. Nf3 {[%clk 0:02:59]}  Nc6 {[%clk 0:03:01]} 3. Bb5 {[%clk 0:02:58]}  f5 {[%clk 0:03:01]} 4. Bxc6 {[%clk 0:02:42]}  dxc6 {[%clk 0:03:02]} 5. Nxe5 {[%clk 0:02:43]}  Qd4 {[%clk 0:03:02]} 6. Nf3 {[%clk 0:02:18]}  Qxe4+ {[%clk 0:03:03]} 7. Kf1 {[%clk 0:02:12]}  Nf6 {[%clk 0:03:04]} 8. Nc3 {[%clk 0:02:11]}  Qe7 {[%clk 0:02:51]} 9. d4 {[%clk 0:02:11]}  Be6 {[%clk 0:02:52]} 10. Bg5 {[%clk 0:02:11]}  O-O-O {[%clk 0:02:52]} 11. Qe2 {[%clk 0:01:59]}  h6 {[%clk 0:02:48]} 12. Re1 {[%clk 0:01:57]}  hxg5 {[%clk 0:02:48]} 13. Qxe6+ {[%clk 0:01:56]}  Qxe6 {[%clk 0:02:49]} 14. Rxe6 {[%clk 0:01:57]}  g4 {[%clk 0:02:49]} 15. Ne5 {[%clk 0:01:52]}  Rxd4 {[%clk 0:02:50]} 16. Ng6 {[%clk 0:01:47]}  Rg8 {[%clk 0:02:50]} 17. Ke2 {[%clk 0:01:17]}  Bd6 {[%clk 0:02:26]} 18. h4 {[%clk 0:00:54]}  Kd7 {[%clk 0:02:10]} 19. Re3 {[%clk 0:00:54]}  f4 {[%clk 0:02:09]} 20. Rd3 {[%clk 0:00:54]}  Re8+ {[%clk 0:02:02]} 21. Kd2 {[%clk 0:00:54]}  Rxd3+ {[%clk 0:01:59]} 22. cxd3 {[%clk 0:00:53]}  Ke6 {[%clk 0:01:57]} 23. h5 {[%clk 0:00:44]}  Kf5 {[%clk 0:01:57]} 24. f3 {[%clk 0:00:30]}  gxf3 {[%clk 0:01:34]} 25. Nh4+ {[%clk 0:00:19]}  Kg4 {[%clk 0:01:32]} 26. Nxf3 {[%clk 0:00:20]}  Rh8 {[%clk 0:01:16]} 27. Rh4+ {[%clk 0:00:16]}  Kf5 {[%clk 0:01:11]} 28. Nd4+ {[%clk 0:00:16]}  Ke5 {[%clk 0:01:07]} 29. Nf3+ {[%clk 0:00:17]}  Ke6 {[%clk 0:01:07]} 30. Ne2 {[%clk 0:00:11]}  Nxh5 {[%clk 0:01:02]} 31. d4 {[%clk 0:00:11]}  Kf5 {[%clk 0:01:00]} 32. Kd3 {[%clk 0:00:11]}  g6 {[%clk 0:00:54]} 33. Nc3 {[%clk 0:00:08]}  Re8 {[%clk 0:00:54]} 34. Rh3 {[%clk 0:00:06]}  Re3+ {[%clk 0:00:55]} 35. Kd2 {[%clk 0:00:06]}  Bb4 {[%clk 0:00:51]} 36. Nh4+ {[%clk 0:00:06]}  Kg4 {[%clk 0:00:50]} 37. Nf3 {[%clk 0:00:05]}  Bd6 {[%clk 0:00:35]} 38. Rh4+ {[%clk 0:00:04]}  Kf5 {[%clk 0:00:36]} 39. Rh3 {[%clk 0:00:05]}  Nf6 {[%clk 0:00:34]} 40. Nh4+ {[%clk 0:00:04]}  Kg4 {[%clk 0:00:35]} 41. Nf3 {[%clk 0:00:05]}  g5 {[%clk 0:00:30]} 42. Rh6 {[%clk 0:00:04]}  Re6 {[%clk 0:00:20]} 43. Kd3 {[%clk 0:00:03]}  Re3+ {[%clk 0:00:20]} 44. Kd2 {[%clk 0:00:03]}  Kf5 {[%clk 0:00:20]} 45. Rh8 {[%clk 0:00:02]}  g4 {[%clk 0:00:20]} 46. Nh4+ {[%clk 0:00:02]}  Kg5 {[%clk 0:00:20]} 47. Nd1 {[%clk 0:00:02]}  Re8 {[%clk 0:00:19]} 48. Rxe8 {[%clk 0:00:02]}  Nxe8 {[%clk 0:00:20]} 49. g3 {[%clk 0:00:02]}  f3 {[%clk 0:00:20]} 50. Nxf3+ {[%clk 0:00:03]}  gxf3 {[%clk 0:00:21]} 51. Ke3 {[%clk 0:00:04]}  Kg4 {[%clk 0:00:20]} 52. Nf2+ {[%clk 0:00:03]}  Kxg3 {[%clk 0:00:21]} 53. Ne4+ {[%clk 0:00:00]}  Kg2 {[%clk 0:00:22]} 0-1

[Event "November 21 Late 2023"]
[Site "https://www.chess.com"]
[Date "2023.11.21"]
[Round "8"]
[White "Manukyan, Sargis A."]
[Black "Yeletsky, Ivan"]
[Result "1-0"]
[Board "23"]
[TimeControl "180+1"]
[WhiteFideId "13303970"]
[BlackFideId "24180327"]
[WhiteElo "2204"]
[BlackElo "2358"]
[WhiteTeam "ARM"]
[BlackTeam "RUS"]
[WhiteClock "0:00:21"]
[BlackClock "0:00:01"]

1. d4 {[%clk 0:03:00]}  Nf6 {[%clk 0:02:59]} 2. c4 {[%clk 0:03:00]}  e6 {[%clk 0:02:59]} 3. Nc3 {[%clk 0:03:01]}  Bb4 {[%clk 0:02:59]} 4. e3 {[%clk 0:03:01]}  O-O {[%clk 0:02:58]} 5. a3 {[%clk 0:03:02]}  Bxc3+ {[%clk 0:02:58]} 6. bxc3 {[%clk 0:03:03]}  c5 {[%clk 0:02:59]} 7. Bd3 {[%clk 0:03:03]}  Nc6 {[%clk 0:02:59]} 8. Ne2 {[%clk 0:03:04]}  b6 {[%clk 0:02:58]} 9. O-O {[%clk 0:03:04]}  Ba6 {[%clk 0:02:58]} 10. e4 {[%clk 0:03:03]}  Ne8 {[%clk 0:02:58]} 11. f4 {[%clk 0:03:04]}  f5 {[%clk 0:02:56]} 12. exf5 {[%clk 0:03:04]}  exf5 {[%clk 0:02:56]} 13. dxc5 {[%clk 0:03:04]}  bxc5 {[%clk 0:02:56]} 14. Ng3 {[%clk 0:03:05]}  g6 {[%clk 0:02:44]} 15. Be3 {[%clk 0:03:04]}  d6 {[%clk 0:02:40]} 16. Re1 {[%clk 0:03:04]}  Qf6 {[%clk 0:02:34]} 17. Bxf5 {[%clk 0:02:43]}  Bxc4 {[%clk 0:02:22]} 18. Be4 {[%clk 0:02:38]}  Rc8 {[%clk 0:02:21]} 19. f5 {[%clk 0:02:25]}  Ng7 {[%clk 0:02:12]} 20. Qa4 {[%clk 0:02:01]}  Ne5 {[%clk 0:02:01]} 21. Bf4 {[%clk 0:02:00]}  Bf7 {[%clk 0:01:46]} 22. Bxe5 {[%clk 0:01:52]}  dxe5 {[%clk 0:01:46]} 23. fxg6 {[%clk 0:01:52]}  hxg6 {[%clk 0:01:41]} 24. Rf1 {[%clk 0:01:44]}  Qe7 {[%clk 0:01:35]} 25. Rab1 {[%clk 0:01:39]}  Ne6 {[%clk 0:01:25]} 26. Rb7 {[%clk 0:01:32]}  Rc7 {[%clk 0:01:26]} 27. Qxa7 {[%clk 0:01:30]}  Rxb7 {[%clk 0:01:24]} 28. Qxb7 {[%clk 0:01:30]}  Qg5 {[%clk 0:00:35]} 29. Kh1 {[%clk 0:00:48]}  Nf4 {[%clk 0:00:32]} 30. Qc7 {[%clk 0:00:39]}  Kg7 {[%clk 0:00:23]} 31. Qxc5 {[%clk 0:00:39]}  Rh8 {[%clk 0:00:23]} 32. Kg1 {[%clk 0:00:27]}  Be6 {[%clk 0:00:04]} 33. Bf5 {[%clk 0:00:25]}  Bxf5 {[%clk 0:00:01]} 34. Qxe5+ {[%clk 0:00:25]}  Kf7 {[%clk 0:00:01]} 35. Qxf4 {[%clk 0:00:26]}  Qxf4 {[%clk 0:00:02]} 36. Rxf4 {[%clk 0:00:27]}  Ke6 {[%clk 0:00:02]} 37. Nxf5 {[%clk 0:00:26]}  gxf5 {[%clk 0:00:03]} 38. Rb4 {[%clk 0:00:21]}  Rc8 {[%clk 0:00:02]} 39. Rb3 {[%clk 0:00:21]}  Ra8 {[%clk 0:00:02]} 40. c4 {[%clk 0:00:21]}  Ra4 {[%clk 0:00:02]} 41. Rc3 {[%clk 0:00:21]}  Kd6 {[%clk 0:00:03]} 42. c5+ {[%clk 0:00:19]}  Kc6 {[%clk 0:00:03]} 43. g3 {[%clk 0:00:19]}  f4 {[%clk 0:00:03]} 44. Kg2 {[%clk 0:00:20]}  fxg3 {[%clk 0:00:03]} 45. hxg3 {[%clk 0:00:20]}  Re4 {[%clk 0:00:01]} 46. Kh3 {[%clk 0:00:21]} 1-0

[Event "November 21 Late 2023"]
[Site "https://www.chess.com"]
[Date "2023.11.21"]
[Round "8"]
[White "Elgersma, Onno"]
[Black "Vasquez Schroeder, Rodrigo"]
[Result "0-1"]
[Board "24"]
[TimeControl "180+1"]
[WhiteFideId "1053531"]
[BlackFideId "3400042"]
[WhiteElo "2251"]
[BlackElo "2582"]
[WhiteTeam "NED"]
[BlackTeam "CHI"]
[WhiteClock "0:00:00"]
[BlackClock "0:00:05"]

1. g3 {[%clk 0:02:45]}  c5 {[%clk 0:02:53]} 2. Bg2 {[%clk 0:02:37]}  g6 {[%clk 0:02:53]} 3. c4 {[%clk 0:02:37]}  Bg7 {[%clk 0:02:53]} 4. Nf3 {[%clk 0:02:38]}  Nc6 {[%clk 0:02:53]} 5. O-O {[%clk 0:02:38]}  d6 {[%clk 0:02:51]} 6. Nc3 {[%clk 0:02:38]}  e6 {[%clk 0:02:49]} 7. d3 {[%clk 0:02:35]}  Nge7 {[%clk 0:02:49]} 8. Bg5 {[%clk 0:02:34]}  h6 {[%clk 0:02:49]} 9. Be3 {[%clk 0:02:25]}  Nf5 {[%clk 0:02:45]} 10. Bd2 {[%clk 0:02:25]}  O-O {[%clk 0:02:45]} 11. a3 {[%clk 0:02:20]}  b6 {[%clk 0:02:39]} 12. Rb1 {[%clk 0:02:17]}  Bb7 {[%clk 0:02:39]} 13. b4 {[%clk 0:02:16]}  Qd7 {[%clk 0:02:31]} 14. e3 {[%clk 0:02:06]}  Rac8 {[%clk 0:02:26]} 15. Qe2 {[%clk 0:02:01]}  Rfd8 {[%clk 0:02:25]} 16. Rfc1 {[%clk 0:01:59]}  Ne5 {[%clk 0:02:14]} 17. a4 {[%clk 0:01:41]}  cxb4 {[%clk 0:02:01]} 18. Rxb4 {[%clk 0:01:41]}  Nc6 {[%clk 0:02:01]} 19. Rbb1 {[%clk 0:01:38]}  Ba8 {[%clk 0:01:59]} 20. Ne1 {[%clk 0:01:31]}  Na5 {[%clk 0:01:55]} 21. Bxa8 {[%clk 0:01:27]}  Rxa8 {[%clk 0:01:56]} 22. Qf3 {[%clk 0:01:26]}  Rac8 {[%clk 0:01:55]} 23. h4 {[%clk 0:01:23]}  h5 {[%clk 0:01:51]} 24. Ne4 {[%clk 0:01:23]}  Nc6 {[%clk 0:01:31]} 25. Rb5 {[%clk 0:01:11]}  d5 {[%clk 0:01:27]} 26. cxd5 {[%clk 0:01:03]}  Ne5 {[%clk 0:01:22]} 27. Qd1 {[%clk 0:01:00]}  exd5 {[%clk 0:01:19]} 28. Ng5 {[%clk 0:01:01]}  Rxc1 {[%clk 0:01:02]} 29. Bxc1 {[%clk 0:01:01]}  Nc6 {[%clk 0:01:02]} 30. Ba3 {[%clk 0:00:46]}  f6 {[%clk 0:00:54]} 31. Ngf3 {[%clk 0:00:45]}  Kh7 {[%clk 0:00:54]} 32. Ng2 {[%clk 0:00:41]}  Ne5 {[%clk 0:00:49]} 33. Nf4 {[%clk 0:00:40]}  Qc6 {[%clk 0:00:39]} 34. Nd4 {[%clk 0:00:25]}  Nxd4 {[%clk 0:00:37]} 35. exd4 {[%clk 0:00:25]}  Ng4 {[%clk 0:00:35]} 36. Qf3 {[%clk 0:00:17]}  Qc3 {[%clk 0:00:28]} 37. Be7 {[%clk 0:00:12]}  Qe1+ {[%clk 0:00:19]} 38. Kg2 {[%clk 0:00:09]}  Qxe7 {[%clk 0:00:20]} 39. Nxd5 {[%clk 0:00:08]}  Qd7 {[%clk 0:00:18]} 40. Nf4 {[%clk 0:00:09]}  Re8 {[%clk 0:00:16]} 41. Rd5 {[%clk 0:00:06]}  Qxa4 {[%clk 0:00:15]} 42. Nxh5 {[%clk 0:00:05]}  gxh5 {[%clk 0:00:13]} 43. Rxh5+ {[%clk 0:00:06]}  Nh6 {[%clk 0:00:13]} 44. Qf5+ {[%clk 0:00:04]}  Kg8 {[%clk 0:00:12]} 45. Qg6 {[%clk 0:00:03]}  Qc6+ {[%clk 0:00:06]} 46. d5 {[%clk 0:00:02]}  Qd7 {[%clk 0:00:05]} 47. Rxh6 {[%clk 0:00:00]}  Qxd5+ {[%clk 0:00:05]} 0-1

[Event "November 21 Late 2023"]
[Site "https://www.chess.com"]
[Date "2023.11.21"]
[Round "8"]
[White "Khamrakulov, Djurabek"]
[Black "Tologon tegin, Semetei"]
[Result "1/2-1/2"]
[Board "25"]
[TimeControl "180+1"]
[WhiteFideId "14201143"]
[BlackFideId "13800574"]
[WhiteElo "2535"]
[BlackElo "2258"]
[WhiteTeam "UZB"]
[BlackTeam "KGZ"]
[WhiteClock "0:00:22"]
[BlackClock "0:00:21"]

1. e4 {[%clk 0:03:00]}  e5 {[%clk 0:02:55]} 2. Nf3 {[%clk 0:03:00]}  Nc6 {[%clk 0:02:54]} 3. Bb5 {[%clk 0:02:59]}  a6 {[%clk 0:02:54]} 4. Ba4 {[%clk 0:02:59]}  Nf6 {[%clk 0:02:54]} 5. O-O {[%clk 0:02:59]}  Be7 {[%clk 0:02:55]} 6. Re1 {[%clk 0:02:56]}  b5 {[%clk 0:02:54]} 7. Bb3 {[%clk 0:02:56]}  O-O {[%clk 0:02:53]} 8. c3 {[%clk 0:02:56]}  d6 {[%clk 0:02:52]} 9. d4 {[%clk 0:02:55]}  Bg4 {[%clk 0:02:52]} 10. Be3 {[%clk 0:02:55]}  Rb8 {[%clk 0:02:33]} 11. Nbd2 {[%clk 0:02:51]}  h6 {[%clk 0:02:29]} 12. h3 {[%clk 0:02:46]}  Bh5 {[%clk 0:02:29]} 13. a3 {[%clk 0:02:28]}  exd4 {[%clk 0:02:29]} 14. cxd4 {[%clk 0:02:27]}  d5 {[%clk 0:02:29]} 15. e5 {[%clk 0:02:21]}  Ne4 {[%clk 0:02:29]} 16. Qc1 {[%clk 0:02:03]}  Na5 {[%clk 0:02:25]} 17. Bc2 {[%clk 0:02:02]}  Bg6 {[%clk 0:02:12]} 18. Nxe4 {[%clk 0:01:53]}  Bxe4 {[%clk 0:01:48]} 19. Bxe4 {[%clk 0:01:52]}  dxe4 {[%clk 0:01:49]} 20. Nd2 {[%clk 0:01:52]}  f5 {[%clk 0:01:45]} 21. exf6 {[%clk 0:01:48]}  Bxf6 {[%clk 0:01:45]} 22. Qc3 {[%clk 0:01:47]}  c5 {[%clk 0:01:31]} 23. Qxc5 {[%clk 0:01:41]}  Rc8 {[%clk 0:01:31]} 24. Qf5 {[%clk 0:01:24]}  Bxd4 {[%clk 0:01:20]} 25. Qe6+ {[%clk 0:01:22]}  Kh8 {[%clk 0:01:20]} 26. Nxe4 {[%clk 0:01:22]}  Re8 {[%clk 0:01:00]} 27. Qg6 {[%clk 0:01:15]}  Rc6 {[%clk 0:01:00]} 28. Qg4 {[%clk 0:01:11]}  Bxb2 {[%clk 0:00:49]} 29. Rad1 {[%clk 0:01:11]}  Qe7 {[%clk 0:00:47]} 30. Bd2 {[%clk 0:01:10]}  Nc4 {[%clk 0:00:43]} 31. Bb4 {[%clk 0:01:02]}  Qf7 {[%clk 0:00:39]} 32. Rd7 {[%clk 0:00:56]}  Qg6 {[%clk 0:00:40]} 33. Qh4 {[%clk 0:00:31]}  Bxa3 {[%clk 0:00:37]} 34. Bxa3 {[%clk 0:00:29]}  Nxa3 {[%clk 0:00:36]} 35. Re3 {[%clk 0:00:28]}  Nc4 {[%clk 0:00:28]} 36. Rg3 {[%clk 0:00:20]}  Qxe4 {[%clk 0:00:28]} 37. Rgxg7 {[%clk 0:00:20]}  Qxh4 {[%clk 0:00:19]} 38. Rh7+ {[%clk 0:00:20]}  Kg8 {[%clk 0:00:20]} 39. Rdg7+ {[%clk 0:00:20]}  Kf8 {[%clk 0:00:20]} 40. Rf7+ {[%clk 0:00:20]}  Kg8 {[%clk 0:00:21]} 41. Rfg7+ {[%clk 0:00:21]}  Kf8 {[%clk 0:00:21]} 42. Rf7+ {[%clk 0:00:21]}  Kg8 {[%clk 0:00:21]} 43. Rfg7+ {[%clk 0:00:22]} 1/2-1/2

[Event "November 21 Late 2023"]
[Site "https://www.chess.com"]
[Date "2023.11.21"]
[Round "8"]
[White "Van Dael, Siem"]
[Black "Xu, Yi"]
[Result "0-1"]
[Board "26"]
[TimeControl "180+1"]
[WhiteFideId "1049771"]
[BlackFideId "8605564"]
[WhiteElo "2252"]
[BlackElo "2460"]
[WhiteTeam "NED"]
[BlackTeam "CHN"]
[WhiteClock "0:00:00"]
[BlackClock "0:00:26"]

1. e4 {[%clk 0:03:00]}  c5 {[%clk 0:02:59]} 2. Nf3 {[%clk 0:03:01]}  Nc6 {[%clk 0:02:58]} 3. d4 {[%clk 0:03:01]}  cxd4 {[%clk 0:02:58]} 4. Nxd4 {[%clk 0:03:01]}  Nf6 {[%clk 0:02:57]} 5. Nc3 {[%clk 0:03:01]}  e6 {[%clk 0:02:57]} 6. Ndb5 {[%clk 0:02:57]}  Bc5 {[%clk 0:02:57]} 7. Bf4 {[%clk 0:02:46]}  O-O {[%clk 0:02:56]} 8. Bc7 {[%clk 0:02:47]}  Qe7 {[%clk 0:02:56]} 9. Bd6 {[%clk 0:02:47]}  Bxd6 {[%clk 0:02:55]} 10. Qxd6 {[%clk 0:02:48]}  Qd8 {[%clk 0:02:53]} 11. O-O-O {[%clk 0:02:48]}  a6 {[%clk 0:02:51]} 12. Nd4 {[%clk 0:02:48]}  Ne7 {[%clk 0:02:47]} 13. Qg3 {[%clk 0:02:45]}  b5 {[%clk 0:02:46]} 14. e5 {[%clk 0:02:45]}  Nfd5 {[%clk 0:02:44]} 15. Nxd5 {[%clk 0:02:45]}  Nxd5 {[%clk 0:02:44]} 16. Nf5 {[%clk 0:02:46]}  exf5 {[%clk 0:02:42]} 17. Rxd5 {[%clk 0:02:46]}  Bb7 {[%clk 0:02:41]} 18. Rd4 {[%clk 0:02:40]}  Qa5 {[%clk 0:02:34]} 19. a3 {[%clk 0:02:37]}  Qe1+ {[%clk 0:02:12]} 20. Rd1 {[%clk 0:02:36]}  Qe4 {[%clk 0:02:13]} 21. Bd3 {[%clk 0:02:18]}  Qxg2 {[%clk 0:02:08]} 22. Qxg2 {[%clk 0:01:59]}  Bxg2 {[%clk 0:02:07]} 23. Rhg1 {[%clk 0:01:58]}  Bf3 {[%clk 0:02:07]} 24. Rd2 {[%clk 0:01:56]}  Rfe8 {[%clk 0:02:02]} 25. Bxf5 {[%clk 0:01:51]}  Rxe5 {[%clk 0:02:02]} 26. Bxd7 {[%clk 0:01:45]}  g6 {[%clk 0:01:59]} 27. b3 {[%clk 0:01:31]}  Rd8 {[%clk 0:01:56]} 28. Rg3 {[%clk 0:01:26]}  Re1+ {[%clk 0:01:34]} 29. Kb2 {[%clk 0:01:25]}  Bc6 {[%clk 0:01:35]} 30. Rgd3 {[%clk 0:01:16]}  Rxd7 {[%clk 0:01:35]} 31. Rxd7 {[%clk 0:01:16]}  Bxd7 {[%clk 0:01:35]} 32. Rxd7 {[%clk 0:01:17]}  Rh1 {[%clk 0:01:30]} 33. Ra7 {[%clk 0:01:12]}  Rxh2 {[%clk 0:01:27]} 34. Rxa6 {[%clk 0:01:12]}  Rxf2 {[%clk 0:01:20]} 35. Rb6 {[%clk 0:01:05]}  h5 {[%clk 0:01:18]} 36. Rxb5 {[%clk 0:00:51]}  h4 {[%clk 0:01:18]} 37. Rd5 {[%clk 0:00:26]}  h3 {[%clk 0:01:14]} 38. Rd1 {[%clk 0:00:18]}  h2 {[%clk 0:01:01]} 39. a4 {[%clk 0:00:18]}  g5 {[%clk 0:00:43]} 40. a5 {[%clk 0:00:16]}  g4 {[%clk 0:00:37]} 41. b4 {[%clk 0:00:06]}  g3 {[%clk 0:00:33]} 42. a6 {[%clk 0:00:06]}  Re2 {[%clk 0:00:27]} 43. a7 {[%clk 0:00:02]}  Re8 {[%clk 0:00:26]} 44. b5 {[%clk 0:00:00]}  g2 {[%clk 0:00:26]} 0-1